[Event "Titled Tuesday Blitz August 02 Early 2022"]
[White "Korchmar, Vasiliy"]
[Black "Aaditya Dhingra"]
[WhiteFideId "24131750"]
[BlackFideId "25678191"]
[WhiteElo "2370"]
[BlackElo "1849"]
[Result "1-0"]
[Round "11"]
[TimeControl "180+1"]
[Date "2022.08.02"]
[WhiteClock "0:00:15"]
[BlackClock "0:01:09"]

1. e4 {[%clk 0:03:00]}  c5 {[%clk 0:02:59]} 2. Nf3 {[%clk 0:03:00]}  d6 {[%clk 0:02:59]} 3. d4 {[%clk 0:03:01]}  cxd4 {[%clk 0:02:59]} 4. Nxd4 {[%clk 0:03:02]}  Nf6 {[%clk 0:02:59]} 5. Nc3 {[%clk 0:03:02]}  Nc6 {[%clk 0:02:59]} 6. Bb5 {[%clk 0:03:01]}  Bd7 {[%clk 0:02:59]} 7. Bg5 {[%clk 0:03:01]}  e6 {[%clk 0:02:58]} 8. Qd3 {[%clk 0:03:01]}  a6 {[%clk 0:02:55]} 9. Bxc6 {[%clk 0:03:01]}  bxc6 {[%clk 0:02:55]} 10. O-O-O {[%clk 0:03:01]}  h6 {[%clk 0:02:54]} 11. Bh4 {[%clk 0:02:57]}  c5 {[%clk 0:02:48]} 12. Nb3 {[%clk 0:02:56]}  Qc7 {[%clk 0:02:46]} 13. e5 {[%clk 0:02:51]}  c4 {[%clk 0:02:37]} 14. Qf3 {[%clk 0:01:45]}  Bc6 {[%clk 0:02:34]} 15. Qe2 {[%clk 0:01:41]}  cxb3 {[%clk 0:02:27]} 16. exf6 {[%clk 0:01:41]}  bxa2 {[%clk 0:02:23]} 17. Nxa2 {[%clk 0:01:41]}  g5 {[%clk 0:02:19]} 18. Bg3 {[%clk 0:01:41]}  Qa5 {[%clk 0:02:18]} 19. Kb1 {[%clk 0:01:34]}  d5 {[%clk 0:02:14]} 20. Rhe1 {[%clk 0:01:18]}  O-O-O {[%clk 0:01:55]} 21. Nc1 {[%clk 0:01:02]}  Bb5 {[%clk 0:01:50]} 22. Qh5 {[%clk 0:01:02]}  Rd7 {[%clk 0:01:42]} 23. Nb3 {[%clk 0:01:02]}  Qb6 {[%clk 0:01:40]} 24. Re3 {[%clk 0:01:01]}  Rb7 {[%clk 0:01:37]} 25. Rc3+ {[%clk 0:00:57]}  Bc4 {[%clk 0:01:33]} 26. Rd4 {[%clk 0:00:46]}  Bb4 {[%clk 0:01:23]} 27. Rcxc4+ {[%clk 0:00:45]}  dxc4 {[%clk 0:01:24]} 28. Rxc4+ {[%clk 0:00:46]}  Kd8 {[%clk 0:01:23]} 29. Nd4 {[%clk 0:00:30]}  Bd6 {[%clk 0:01:15]} 30. Nc6+ {[%clk 0:00:25]}  Kd7 {[%clk 0:01:13]} 31. Qxf7+ {[%clk 0:00:24]}  Kc8 {[%clk 0:01:11]} 32. Qxe6+ {[%clk 0:00:19]}  Kc7 {[%clk 0:01:09]} 33. Bxd6# {[%clk 0:00:15]} 1-0


[Site "https://www.chess.com"]

[Event "Titled Tuesday Blitz August 02 Early 2022"]
[White "Munkhgal, Gombosuren"]
[Black "Barria Zuniga, Daniel"]
[WhiteFideId "4901266"]
[BlackFideId "3400816"]
[WhiteElo "2576"]
[BlackElo "2414"]
[Result "0-1"]
[Round "11"]
[TimeControl "180+1"]
[Date "2022.08.02"]
[WhiteClock "0:00:08"]
[BlackClock "0:00:05"]

1. d4 {[%clk 0:03:00]}  Nf6 {[%clk 0:02:55]} 2. Nf3 {[%clk 0:03:00]}  e6 {[%clk 0:02:55]} 3. g3 {[%clk 0:02:59]}  b6 {[%clk 0:02:52]} 4. Bg2 {[%clk 0:02:58]}  Bb7 {[%clk 0:02:52]} 5. O-O {[%clk 0:02:57]}  Be7 {[%clk 0:02:53]} 6. c4 {[%clk 0:02:55]}  O-O {[%clk 0:02:53]} 7. b3 {[%clk 0:02:55]}  d5 {[%clk 0:02:44]} 8. Ne5 {[%clk 0:02:31]}  Qc8 {[%clk 0:02:27]} 9. Nc3 {[%clk 0:02:23]}  dxc4 {[%clk 0:02:23]} 10. Nxc4 {[%clk 0:02:06]}  Bxg2 {[%clk 0:02:13]} 11. Kxg2 {[%clk 0:02:07]}  Rd8 {[%clk 0:02:10]} 12. e3 {[%clk 0:01:17]}  c5 {[%clk 0:01:58]} 13. Ne2 {[%clk 0:01:09]}  Qb7+ {[%clk 0:01:48]} 14. Kg1 {[%clk 0:01:05]}  Nc6 {[%clk 0:01:48]} 15. Bb2 {[%clk 0:00:37]}  b5 {[%clk 0:01:34]} 16. Nd2 {[%clk 0:00:26]}  Nb4 {[%clk 0:01:21]} 17. Qb1 {[%clk 0:00:21]}  Rac8 {[%clk 0:01:15]} 18. a3 {[%clk 0:00:21]}  Nbd5 {[%clk 0:01:13]} 19. Ne4 {[%clk 0:00:21]}  c4 {[%clk 0:01:05]} 20. bxc4 {[%clk 0:00:17]}  Rxc4 {[%clk 0:01:02]} 21. Nxf6+ {[%clk 0:00:17]}  Nxf6 {[%clk 0:00:38]} 22. Rc1 {[%clk 0:00:16]}  Rdc8 {[%clk 0:00:37]} 23. Rxc4 {[%clk 0:00:16]}  Rxc4 {[%clk 0:00:38]} 24. Qd3 {[%clk 0:00:16]}  Qe4 {[%clk 0:00:21]} 25. Qxe4 {[%clk 0:00:16]}  Nxe4 {[%clk 0:00:22]} 26. Rc1 {[%clk 0:00:15]}  Rxc1+ {[%clk 0:00:20]} 27. Bxc1 {[%clk 0:00:15]}  Nd6 {[%clk 0:00:20]} 28. Nc3 {[%clk 0:00:14]}  a6 {[%clk 0:00:20]} 29. Kf1 {[%clk 0:00:10]}  Nc4 {[%clk 0:00:19]} 30. Nb1 {[%clk 0:00:10]}  e5 {[%clk 0:00:18]} 31. dxe5 {[%clk 0:00:09]}  Nxe5 {[%clk 0:00:17]} 32. Ke2 {[%clk 0:00:08]}  f6 {[%clk 0:00:17]} 33. Kd1 {[%clk 0:00:08]}  h5 {[%clk 0:00:14]} 34. Kc2 {[%clk 0:00:07]}  Ng4 {[%clk 0:00:14]} 35. f3 {[%clk 0:00:03]}  Nxh2 {[%clk 0:00:13]} 36. Nd2 {[%clk 0:00:03]}  Bc5 {[%clk 0:00:11]} 37. Kd3 {[%clk 0:00:03]}  Bd6 {[%clk 0:00:10]} 38. Ne4 {[%clk 0:00:02]}  Bc7 {[%clk 0:00:10]} 39. Nc5 {[%clk 0:00:02]}  Bxg3 {[%clk 0:00:09]} 40. Ne6 {[%clk 0:00:02]}  Nxf3 {[%clk 0:00:08]} 41. Ke4 {[%clk 0:00:01]}  Ng5+ {[%clk 0:00:07]} 42. Kf5 {[%clk 0:00:01]}  Nxe6 {[%clk 0:00:07]} 43. Kxe6 {[%clk 0:00:02]}  h4 {[%clk 0:00:08]} 44. e4 {[%clk 0:00:03]}  h3 {[%clk 0:00:08]} 45. Bf4 {[%clk 0:00:03]}  Bxf4 {[%clk 0:00:08]} 46. e5 {[%clk 0:00:04]}  Bxe5 {[%clk 0:00:08]} 47. a4 {[%clk 0:00:04]}  bxa4 {[%clk 0:00:07]} 48. Kf5 {[%clk 0:00:05]}  Kf7 {[%clk 0:00:06]} 49. Kg4 {[%clk 0:00:05]}  Bd6 {[%clk 0:00:06]} 50. Kxh3 {[%clk 0:00:05]}  Bf8 {[%clk 0:00:07]} 51. Kg4 {[%clk 0:00:06]}  a3 {[%clk 0:00:07]} 52. Kf5 {[%clk 0:00:07]}  a2 {[%clk 0:00:07]} 53. Ke4 {[%clk 0:00:08]}  Ke6 {[%clk 0:00:06]} 54. Kd4 {[%clk 0:00:08]}  a1=Q+ {[%clk 0:00:06]} 55. Kc4 {[%clk 0:00:08]}  Qe5 {[%clk 0:00:05]} 56. Kb3 {[%clk 0:00:08]}  Ke7 {[%clk 0:00:05]} 0-1


[Site "https://www.chess.com"]

[Event "Titled Tuesday Blitz August 02 Early 2022"]
[White "Nakamura, Hikaru"]
[Black "Martinez Alcantara, Jose Eduardo"]
[WhiteFideId "2016192"]
[BlackFideId "3805662"]
[WhiteElo "2850"]
[BlackElo "2703"]
[Result "1-0"]
[Round "11"]
[TimeControl "180+1"]
[Date "2022.08.02"]
[WhiteClock "0:00:03"]
[BlackClock "0:00:03"]

1. Nf3 {[%clk 0:03:00]}  Nf6 {[%clk 0:02:56]} 2. d4 {[%clk 0:02:59]}  d5 {[%clk 0:02:55]} 3. Bf4 {[%clk 0:02:58]}  e6 {[%clk 0:02:55]} 4. e3 {[%clk 0:02:59]}  Bd6 {[%clk 0:02:55]} 5. Bg3 {[%clk 0:02:57]}  b6 {[%clk 0:02:50]} 6. Nbd2 {[%clk 0:02:56]}  Bb7 {[%clk 0:02:50]} 7. c4 {[%clk 0:02:55]}  Nbd7 {[%clk 0:02:48]} 8. Rc1 {[%clk 0:02:54]}  O-O {[%clk 0:02:48]} 9. Bd3 {[%clk 0:02:53]}  h6 {[%clk 0:02:45]} 10. O-O {[%clk 0:02:49]}  Bxg3 {[%clk 0:02:40]} 11. hxg3 {[%clk 0:02:49]}  c5 {[%clk 0:02:40]} 12. cxd5 {[%clk 0:02:45]}  Nxd5 {[%clk 0:02:35]} 13. a3 {[%clk 0:02:45]}  cxd4 {[%clk 0:02:34]} 14. Nxd4 {[%clk 0:02:46]}  Rc8 {[%clk 0:02:33]} 15. Qe2 {[%clk 0:02:37]}  Rxc1 {[%clk 0:02:19]} 16. Rxc1 {[%clk 0:02:38]}  Qb8 {[%clk 0:02:19]} 17. Bb5 {[%clk 0:02:22]}  N7f6 {[%clk 0:02:13]} 18. Nc6 {[%clk 0:02:12]}  Bxc6 {[%clk 0:02:12]} 19. Rxc6 {[%clk 0:02:11]}  Rc8 {[%clk 0:02:12]} 20. Qc4 {[%clk 0:02:09]}  Ne7 {[%clk 0:02:01]} 21. Rxc8+ {[%clk 0:02:09]}  Qxc8 {[%clk 0:02:02]} 22. Qxc8+ {[%clk 0:02:07]}  Nxc8 {[%clk 0:02:03]} 23. e4 {[%clk 0:02:07]}  Kf8 {[%clk 0:01:44]} 24. f3 {[%clk 0:02:04]}  Ke7 {[%clk 0:01:43]} 25. Kf2 {[%clk 0:02:03]}  Nd6 {[%clk 0:01:41]} 26. Bc6 {[%clk 0:02:03]}  Nd7 {[%clk 0:01:36]} 27. f4 {[%clk 0:01:52]}  Nb8 {[%clk 0:01:23]} 28. Ba4 {[%clk 0:01:51]}  f6 {[%clk 0:01:21]} 29. Ke3 {[%clk 0:01:40]}  b5 {[%clk 0:01:05]} 30. Bb3 {[%clk 0:01:26]}  Nc6 {[%clk 0:01:04]} 31. Ba2 {[%clk 0:01:26]}  a5 {[%clk 0:00:40]} 32. g4 {[%clk 0:01:21]}  g5 {[%clk 0:00:39]} 33. g3 {[%clk 0:01:22]}  a4 {[%clk 0:00:33]} 34. Nb1 {[%clk 0:01:14]}  b4 {[%clk 0:00:31]} 35. Nd2 {[%clk 0:01:09]}  bxa3 {[%clk 0:00:27]} 36. bxa3 {[%clk 0:01:10]}  Nb5 {[%clk 0:00:27]} 37. Nb1 {[%clk 0:01:07]}  e5 {[%clk 0:00:21]} 38. Bc4 {[%clk 0:01:06]}  Ncd4 {[%clk 0:00:20]} 39. Bxb5 {[%clk 0:00:40]}  Nxb5 {[%clk 0:00:20]} 40. fxe5 {[%clk 0:00:38]}  fxe5 {[%clk 0:00:21]} 41. Kd3 {[%clk 0:00:38]}  Kd6 {[%clk 0:00:12]} 42. Kc4 {[%clk 0:00:21]}  Kc6 {[%clk 0:00:13]} 43. Kb4 {[%clk 0:00:19]}  Nd4 {[%clk 0:00:09]} 44. Nc3 {[%clk 0:00:18]}  Nc2+ {[%clk 0:00:09]} 45. Kxa4 {[%clk 0:00:18]}  Ne3 {[%clk 0:00:10]} 46. Kb4 {[%clk 0:00:15]}  Nxg4 {[%clk 0:00:11]} 47. Kc4 {[%clk 0:00:15]}  h5 {[%clk 0:00:10]} 48. Kd3 {[%clk 0:00:13]}  h4 {[%clk 0:00:11]} 49. gxh4 {[%clk 0:00:13]}  gxh4 {[%clk 0:00:12]} 50. Ke2 {[%clk 0:00:13]}  h3 {[%clk 0:00:12]} 51. Kf3 {[%clk 0:00:12]}  h2 {[%clk 0:00:12]} 52. Kg2 {[%clk 0:00:13]}  Kc5 {[%clk 0:00:12]} 53. Ne2 {[%clk 0:00:08]}  Kb5 {[%clk 0:00:09]} 54. Ng3 {[%clk 0:00:06]}  Ka4 {[%clk 0:00:09]} 55. Kh3 {[%clk 0:00:04]}  h1=Q+ {[%clk 0:00:07]} 56. Nxh1 {[%clk 0:00:04]}  Nf2+ {[%clk 0:00:08]} 57. Nxf2 {[%clk 0:00:04]}  Kxa3 {[%clk 0:00:03]} 58. Kg4 {[%clk 0:00:03]} 1-0


[Site "https://www.chess.com"]

[Event "Titled Tuesday Blitz August 02 Early 2022"]
[White "Piesik, Piotr"]
[Black "Szpar, Milosz"]
[WhiteFideId "1136194"]
[BlackFideId "1184989"]
[WhiteElo "2242"]
[BlackElo "2422"]
[Result "1-0"]
[Round "11"]
[TimeControl "180+1"]
[Date "2022.08.02"]
[WhiteClock "0:00:25"]
[BlackClock "0:00:03"]

1. d4 {[%clk 0:03:00]}  Nf6 {[%clk 0:02:59]} 2. c4 {[%clk 0:03:01]}  c5 {[%clk 0:02:59]} 3. d5 {[%clk 0:03:00]}  e6 {[%clk 0:03:00]} 4. Nc3 {[%clk 0:03:00]}  exd5 {[%clk 0:03:00]} 5. cxd5 {[%clk 0:03:00]}  d6 {[%clk 0:03:01]} 6. e4 {[%clk 0:03:01]}  g6 {[%clk 0:03:01]} 7. f4 {[%clk 0:03:00]}  Bg7 {[%clk 0:03:01]} 8. Bb5+ {[%clk 0:03:00]}  Nfd7 {[%clk 0:03:02]} 9. a4 {[%clk 0:03:00]}  O-O {[%clk 0:03:02]} 10. Nf3 {[%clk 0:02:36]}  Na6 {[%clk 0:03:02]} 11. O-O {[%clk 0:02:30]}  Nb4 {[%clk 0:03:02]} 12. Re1 {[%clk 0:02:26]}  a6 {[%clk 0:03:01]} 13. Bf1 {[%clk 0:02:25]}  Re8 {[%clk 0:02:59]} 14. h3 {[%clk 0:02:24]}  f5 {[%clk 0:02:59]} 15. Bd2 {[%clk 0:02:23]}  fxe4 {[%clk 0:02:58]} 16. Nxe4 {[%clk 0:02:21]}  Nf6 {[%clk 0:02:55]} 17. Nxf6+ {[%clk 0:02:21]}  Bxf6 {[%clk 0:02:56]} 18. Qb3 {[%clk 0:02:21]}  Rxe1 {[%clk 0:02:04]} 19. Rxe1 {[%clk 0:02:21]}  Bd7 {[%clk 0:02:02]} 20. Bc3 {[%clk 0:02:08]}  a5 {[%clk 0:01:53]} 21. Nd2 {[%clk 0:02:04]}  Qf8 {[%clk 0:01:34]} 22. Nc4 {[%clk 0:01:55]}  Bh4 {[%clk 0:01:31]} 23. Re4 {[%clk 0:01:51]}  Bf5 {[%clk 0:01:30]} 24. Re3 {[%clk 0:01:39]}  Bc2 {[%clk 0:01:27]} 25. Qa3 {[%clk 0:01:39]}  Qxf4 {[%clk 0:01:21]} 26. Rf3 {[%clk 0:01:33]}  Qe4 {[%clk 0:00:28]} 27. Nxd6 {[%clk 0:01:29]}  Qe7 {[%clk 0:00:28]} 28. Nf7 {[%clk 0:01:19]}  Qxf7 {[%clk 0:00:09]} 29. Rxf7 {[%clk 0:01:17]}  Kxf7 {[%clk 0:00:10]} 30. d6 {[%clk 0:01:15]}  Ke6 {[%clk 0:00:09]} 31. Bxb4 {[%clk 0:01:07]}  axb4 {[%clk 0:00:09]} 32. Qe3+ {[%clk 0:01:07]}  Kf7 {[%clk 0:00:05]} 33. Bc4+ {[%clk 0:01:06]}  Kg7 {[%clk 0:00:04]} 34. Qxc5 {[%clk 0:00:56]}  Rxa4 {[%clk 0:00:04]} 35. Qc7+ {[%clk 0:00:42]}  Kh6 {[%clk 0:00:04]} 36. d7 {[%clk 0:00:41]}  Ra1+ {[%clk 0:00:04]} 37. Kh2 {[%clk 0:00:41]}  Rd1 {[%clk 0:00:04]} 38. Be6 {[%clk 0:00:31]}  b3 {[%clk 0:00:05]} 39. Qf4+ {[%clk 0:00:29]}  Bg5 {[%clk 0:00:05]} 40. Qf8+ {[%clk 0:00:27]}  Kh5 {[%clk 0:00:06]} 41. g4+ {[%clk 0:00:24]}  Kh4 {[%clk 0:00:03]} 42. Qf2# {[%clk 0:00:25]} 1-0


[Site "https://www.chess.com"]

[Event "Titled Tuesday Blitz August 02 Early 2022"]
[White "Ponce Cano, Adrian"]
[Black "Vachylia, Andrii"]
[WhiteFideId "22296913"]
[BlackFideId "14137224"]
[WhiteElo "2261"]
[BlackElo "2318"]
[Result "0-1"]
[Round "11"]
[TimeControl "180+1"]
[Date "2022.08.02"]
[WhiteClock "0:01:09"]
[BlackClock "0:00:38"]

1. e4 {[%clk 0:03:00]}  c5 {[%clk 0:02:59]} 2. Nf3 {[%clk 0:02:59]}  d6 {[%clk 0:02:55]} 3. c3 {[%clk 0:02:59]}  Nf6 {[%clk 0:02:54]} 4. Be2 {[%clk 0:03:00]}  g6 {[%clk 0:02:54]} 5. O-O {[%clk 0:03:00]}  Bg7 {[%clk 0:02:55]} 6. Re1 {[%clk 0:03:00]}  O-O {[%clk 0:02:55]} 7. Bf1 {[%clk 0:03:01]}  e5 {[%clk 0:02:53]} 8. h3 {[%clk 0:03:02]}  Nc6 {[%clk 0:02:53]} 9. d4 {[%clk 0:03:01]}  cxd4 {[%clk 0:02:53]} 10. cxd4 {[%clk 0:03:02]}  exd4 {[%clk 0:02:53]} 11. Nxd4 {[%clk 0:03:03]}  Nxd4 {[%clk 0:02:53]} 12. Qxd4 {[%clk 0:03:04]}  Re8 {[%clk 0:02:53]} 13. Qb4 {[%clk 0:03:00]}  a5 {[%clk 0:02:51]} 14. Qc4 {[%clk 0:02:49]}  d5 {[%clk 0:02:50]} 15. Qb3 {[%clk 0:02:40]}  dxe4 {[%clk 0:02:47]} 16. Nc3 {[%clk 0:02:39]}  Qe7 {[%clk 0:01:57]} 17. Bg5 {[%clk 0:02:37]}  Bf5 {[%clk 0:01:54]} 18. Bb5 {[%clk 0:02:32]}  Red8 {[%clk 0:01:47]} 19. g4 {[%clk 0:02:32]}  Be6 {[%clk 0:01:46]} 20. Qc2 {[%clk 0:02:29]}  Qc5 {[%clk 0:01:38]} 21. Bxf6 {[%clk 0:02:26]}  Bxf6 {[%clk 0:01:37]} 22. Ba4 {[%clk 0:02:18]}  Bxc3 {[%clk 0:01:03]} 23. bxc3 {[%clk 0:02:17]}  h5 {[%clk 0:01:00]} 24. Rxe4 {[%clk 0:02:11]}  Rac8 {[%clk 0:00:58]} 25. Rc1 {[%clk 0:02:02]}  hxg4 {[%clk 0:00:54]} 26. hxg4 {[%clk 0:02:01]}  Qg5 {[%clk 0:00:45]} 27. Rce1 {[%clk 0:01:10]}  Bf5 {[%clk 0:00:39]} 28. Re8+ {[%clk 0:01:09]}  Rxe8 {[%clk 0:00:38]} 29. Rxe8+ {[%clk 0:01:09]}  Rxe8 {[%clk 0:00:38]} 0-1


[Site "https://www.chess.com"]

[Event "Titled Tuesday Blitz August 02 Early 2022"]
[White "Seo, Jung Min"]
[Black "Khripachenko, Alexander"]
[WhiteFideId "1734687"]
[BlackFideId "54184975"]
[WhiteElo "2414"]
[BlackElo "2147"]
[Result "1-0"]
[Round "11"]
[TimeControl "180+1"]
[Date "2022.08.02"]
[WhiteClock "0:00:08"]
[BlackClock "0:00:08"]

1. e4 {[%clk 0:03:00]}  c6 {[%clk 0:02:58]} 2. Nf3 {[%clk 0:02:58]}  d5 {[%clk 0:02:59]} 3. d3 {[%clk 0:02:59]}  Qc7 {[%clk 0:02:59]} 4. Nc3 {[%clk 0:02:57]}  dxe4 {[%clk 0:02:56]} 5. dxe4 {[%clk 0:02:54]}  e5 {[%clk 0:02:56]} 6. Bc4 {[%clk 0:02:53]}  Nd7 {[%clk 0:02:42]} 7. Ng5 {[%clk 0:02:53]}  Nh6 {[%clk 0:02:40]} 8. O-O {[%clk 0:02:50]}  b5 {[%clk 0:02:36]} 9. Bb3 {[%clk 0:02:43]}  Nc5 {[%clk 0:02:36]} 10. Qf3 {[%clk 0:02:39]}  a5 {[%clk 0:02:25]} 11. a4 {[%clk 0:02:38]}  b4 {[%clk 0:02:25]} 12. Nb1 {[%clk 0:02:35]}  Nxb3 {[%clk 0:02:21]} 13. Qxb3 {[%clk 0:02:31]}  f6 {[%clk 0:02:16]} 14. Ne6 {[%clk 0:02:29]}  Qf7 {[%clk 0:02:15]} 15. Nxf8 {[%clk 0:02:23]}  Qxb3 {[%clk 0:02:15]} 16. cxb3 {[%clk 0:02:23]}  Rxf8 {[%clk 0:02:16]} 17. Bxh6 {[%clk 0:02:22]}  gxh6 {[%clk 0:02:17]} 18. Nd2 {[%clk 0:02:22]}  Be6 {[%clk 0:02:17]} 19. Rfc1 {[%clk 0:02:18]}  Kd7 {[%clk 0:02:18]} 20. Rc5 {[%clk 0:02:14]}  Rfc8 {[%clk 0:02:17]} 21. Rac1 {[%clk 0:02:11]}  Kd6 {[%clk 0:02:16]} 22. f3 {[%clk 0:02:10]}  Ra6 {[%clk 0:02:17]} 23. Kf2 {[%clk 0:02:07]}  h5 {[%clk 0:02:17]} 24. h4 {[%clk 0:02:07]}  Rd8 {[%clk 0:02:15]} 25. Ke3 {[%clk 0:02:03]}  Rg8 {[%clk 0:02:15]} 26. Kf2 {[%clk 0:01:56]}  Rd8 {[%clk 0:02:15]} 27. R5c2 {[%clk 0:01:52]}  Bf7 {[%clk 0:02:07]} 28. Nc4+ {[%clk 0:01:51]}  Ke7 {[%clk 0:02:07]} 29. Ke2 {[%clk 0:01:46]}  Rg8 {[%clk 0:02:07]} 30. Ke3 {[%clk 0:01:44]}  Rd8 {[%clk 0:02:07]} 31. Nd2 {[%clk 0:01:40]}  Rd6 {[%clk 0:02:07]} 32. Rc5 {[%clk 0:01:38]}  Be6 {[%clk 0:02:04]} 33. Nc4 {[%clk 0:01:37]}  Bxc4 {[%clk 0:02:03]} 34. R5xc4 {[%clk 0:01:31]}  Kd7 {[%clk 0:02:02]} 35. Rg1 {[%clk 0:01:28]}  Ke6 {[%clk 0:01:50]} 36. g4 {[%clk 0:01:25]}  hxg4 {[%clk 0:01:50]} 37. Rxg4 {[%clk 0:01:25]}  Rd1 {[%clk 0:01:44]} 38. Rg7 {[%clk 0:01:25]}  Re1+ {[%clk 0:01:40]} 39. Kf2 {[%clk 0:01:22]}  Rh1 {[%clk 0:01:40]} 40. Kg2 {[%clk 0:00:55]}  Rxh4 {[%clk 0:01:39]} 41. Rc7 {[%clk 0:00:54]}  Kd6 {[%clk 0:01:40]} 42. Rf7 {[%clk 0:00:54]}  Rh6 {[%clk 0:01:40]} 43. Rc1 {[%clk 0:00:53]}  Ke6 {[%clk 0:01:40]} 44. Rc7 {[%clk 0:00:53]}  Kd6 {[%clk 0:01:40]} 45. Rb7 {[%clk 0:00:51]}  Rg6+ {[%clk 0:01:38]} 46. Kf2 {[%clk 0:00:51]}  Rh6 {[%clk 0:01:18]} 47. Rd1+ {[%clk 0:00:50]}  Kc5 {[%clk 0:01:18]} 48. Ke3 {[%clk 0:00:45]}  Rh2 {[%clk 0:01:12]} 49. Rc1+ {[%clk 0:00:41]}  Kd6 {[%clk 0:01:12]} 50. Rd1+ {[%clk 0:00:25]}  Ke6 {[%clk 0:01:07]} 51. Rdd7 {[%clk 0:00:24]}  Rxb2 {[%clk 0:01:05]} 52. Re7+ {[%clk 0:00:24]}  Kd6 {[%clk 0:01:05]} 53. Rxh7 {[%clk 0:00:18]}  Rxb3+ {[%clk 0:01:06]} 54. Kf2 {[%clk 0:00:19]}  Ra3 {[%clk 0:01:02]} 55. Rhf7 {[%clk 0:00:17]}  Rxa4 {[%clk 0:01:01]} 56. Rxf6+ {[%clk 0:00:17]}  Kc5 {[%clk 0:01:01]} 57. Re6 {[%clk 0:00:17]}  Rb6 {[%clk 0:00:22]} 58. Rxe5+ {[%clk 0:00:13]}  Kd6 {[%clk 0:00:22]} 59. Rxb6 {[%clk 0:00:13]}  Kxe5 {[%clk 0:00:22]} 60. Rxc6 {[%clk 0:00:13]}  b3 {[%clk 0:00:23]} 61. Ke3 {[%clk 0:00:10]}  Rxe4+ {[%clk 0:00:07]} 62. fxe4 {[%clk 0:00:09]}  a4 {[%clk 0:00:08]} 63. Rb6 {[%clk 0:00:08]} 1-0


[Site "https://www.chess.com"]

[Event "Titled Tuesday Blitz August 02 Early 2022"]
[White "Shimanov, Aleksandr"]
[Black "Manukyan, Sargis A."]
[WhiteFideId "4198603"]
[BlackFideId "13303970"]
[WhiteElo "2605"]
[BlackElo "2187"]
[Result "0-1"]
[Round "11"]
[TimeControl "180+1"]
[Date "2022.08.02"]
[WhiteClock "0:00:19"]
[BlackClock "0:00:41"]

1. e4 {[%clk 0:03:00]}  e6 {[%clk 0:02:59]} 2. d4 {[%clk 0:02:49]}  d5 {[%clk 0:02:59]} 3. Nc3 {[%clk 0:02:50]}  Bb4 {[%clk 0:02:58]} 4. Ne2 {[%clk 0:02:49]}  dxe4 {[%clk 0:02:57]} 5. a3 {[%clk 0:02:48]}  Bxc3+ {[%clk 0:02:56]} 6. Nxc3 {[%clk 0:02:49]}  Nc6 {[%clk 0:02:51]} 7. Bf4 {[%clk 0:02:48]}  Nf6 {[%clk 0:02:16]} 8. Bb5 {[%clk 0:02:38]}  O-O {[%clk 0:02:09]} 9. Bxc6 {[%clk 0:02:34]}  bxc6 {[%clk 0:02:10]} 10. Qd2 {[%clk 0:02:29]}  Nd5 {[%clk 0:01:44]} 11. O-O {[%clk 0:01:52]}  Rb8 {[%clk 0:01:26]} 12. b4 {[%clk 0:01:48]}  Nxf4 {[%clk 0:01:19]} 13. Qxf4 {[%clk 0:01:47]}  Qxd4 {[%clk 0:01:20]} 14. Nxe4 {[%clk 0:01:29]}  f5 {[%clk 0:01:08]} 15. Qxc7 {[%clk 0:00:39]}  Rb7 {[%clk 0:01:05]} 16. Qxc6 {[%clk 0:00:39]}  Qxe4 {[%clk 0:01:00]} 17. Qc5 {[%clk 0:00:39]}  Qd5 {[%clk 0:00:52]} 18. Qe3 {[%clk 0:00:36]}  Rc7 {[%clk 0:00:49]} 19. Rad1 {[%clk 0:00:35]}  Qe4 {[%clk 0:00:47]} 20. Qxe4 {[%clk 0:00:21]}  fxe4 {[%clk 0:00:47]} 21. Rd2 {[%clk 0:00:22]}  Bb7 {[%clk 0:00:43]} 22. Re1 {[%clk 0:00:20]}  Bd5 {[%clk 0:00:42]} 23. Re3 {[%clk 0:00:19]}  Rfc8 {[%clk 0:00:41]} 0-1


[Site "https://www.chess.com"]

[Event "Titled Tuesday Blitz August 02 Early 2022"]
[White "Tanenbaum, Zachary"]
[Black "Itgelt, Khuyagtsogt"]
[WhiteFideId "2060850"]
[BlackFideId "4902912"]
[WhiteElo "2175"]
[BlackElo "2012"]
[Result "1-0"]
[Round "11"]
[TimeControl "180+1"]
[Date "2022.08.02"]
[WhiteClock "0:00:14"]
[BlackClock "0:00:04"]

1. e4 {[%clk 0:03:00]}  c6 {[%clk 0:02:57]} 2. d4 {[%clk 0:03:00]}  d5 {[%clk 0:02:57]} 3. exd5 {[%clk 0:03:01]}  cxd5 {[%clk 0:02:58]} 4. Bd3 {[%clk 0:03:01]}  Nc6 {[%clk 0:02:59]} 5. c3 {[%clk 0:03:02]}  e6 {[%clk 0:02:56]} 6. Bf4 {[%clk 0:03:02]}  Bd6 {[%clk 0:02:57]} 7. Bg3 {[%clk 0:03:02]}  Nge7 {[%clk 0:02:53]} 8. Nf3 {[%clk 0:03:01]}  a6 {[%clk 0:02:47]} 9. a4 {[%clk 0:02:59]}  h6 {[%clk 0:02:45]} 10. O-O {[%clk 0:02:58]}  O-O {[%clk 0:02:45]} 11. Nbd2 {[%clk 0:02:57]}  Bxg3 {[%clk 0:02:43]} 12. hxg3 {[%clk 0:02:57]}  Qd6 {[%clk 0:02:39]} 13. Re1 {[%clk 0:02:56]}  Bd7 {[%clk 0:02:39]} 14. Ne5 {[%clk 0:02:54]}  Nxe5 {[%clk 0:02:40]} 15. dxe5 {[%clk 0:02:54]}  Qb6 {[%clk 0:02:39]} 16. Nb3 {[%clk 0:02:44]}  Rac8 {[%clk 0:02:31]} 17. a5 {[%clk 0:02:44]}  Qc7 {[%clk 0:02:30]} 18. Nd4 {[%clk 0:02:43]}  Nc6 {[%clk 0:02:23]} 19. Nxc6 {[%clk 0:02:41]}  Bxc6 {[%clk 0:02:23]} 20. Bc2 {[%clk 0:02:34]}  Bb5 {[%clk 0:02:22]} 21. g4 {[%clk 0:02:15]}  Rfd8 {[%clk 0:02:21]} 22. g5 {[%clk 0:02:09]}  hxg5 {[%clk 0:02:04]} 23. Qh5 {[%clk 0:02:09]}  g6 {[%clk 0:01:28]} 24. Qxg5 {[%clk 0:02:08]}  d4 {[%clk 0:01:28]} 25. Re4 {[%clk 0:01:35]}  Rd5 {[%clk 0:01:14]} 26. Bb3 {[%clk 0:01:26]}  Rc5 {[%clk 0:00:47]} 27. Bxe6 {[%clk 0:00:58]}  fxe6 {[%clk 0:00:18]} 28. Qxg6+ {[%clk 0:00:57]}  Qg7 {[%clk 0:00:19]} 29. Qxe6+ {[%clk 0:00:58]}  Qf7 {[%clk 0:00:20]} 30. Rg4+ {[%clk 0:00:57]}  Kf8 {[%clk 0:00:20]} 31. Qh6+ {[%clk 0:00:32]}  Ke8 {[%clk 0:00:20]} 32. Rg7 {[%clk 0:00:24]}  Qf8 {[%clk 0:00:04]} 33. Qg6+ {[%clk 0:00:23]}  Kd8 {[%clk 0:00:03]} 34. Rg8 {[%clk 0:00:23]}  Qxg8 {[%clk 0:00:02]} 35. Qxg8+ {[%clk 0:00:24]}  Ke7 {[%clk 0:00:02]} 36. Qg7+ {[%clk 0:00:24]}  Ke6 {[%clk 0:00:03]} 37. Qf6+ {[%clk 0:00:24]}  Kd5 {[%clk 0:00:03]} 38. Qd6+ {[%clk 0:00:24]}  Kc4 {[%clk 0:00:04]} 39. Qxd4+ {[%clk 0:00:23]}  Kb3 {[%clk 0:00:05]} 40. Qb4+ {[%clk 0:00:16]}  Kc2 {[%clk 0:00:05]} 41. Qe4+ {[%clk 0:00:16]}  Kb3 {[%clk 0:00:05]} 42. e6 {[%clk 0:00:15]}  Rc4 {[%clk 0:00:04]} 43. Qe3 {[%clk 0:00:14]}  Kxb2 {[%clk 0:00:03]} 44. Qc1+ {[%clk 0:00:13]}  Kb3 {[%clk 0:00:04]} 45. Ra3# {[%clk 0:00:14]} 1-0


[Site "https://www.chess.com"]